fUSD/lending_fUSD_20250809
["ID","MTS","AMOUNT","RATE_DAILY","PERIOD"]
[378072142,1754716299479,-585.11,0.00025753,2]
[378072143,1754716299490,-400.0,0.00025753,2]
[378072144,1754716299501,-400.0,0.00025753,2]
[378072145,1754716299511,-400.0,0.00025753,2]
[378072146,1754716299522,-400.0,0.00025753,2]
[378072147,1754716299531,-400.0,0.00025753,2]
[378072148,1754716299541,-400.0,0.00025753,2]
[378072149,1754716299551,-400.0,0.00025753,2]
[378072150,1754716299560,-366.09423937,0.00025753,2]
[378072151,1754716299570,-400.0,0.00025753,2]
[378072152,1754716299580,-571.55,0.00025753,2]
[378072153,1754716299591,-400.0,0.00025753,2]
[378072154,1754716299601,-461.13,0.00025753,2]
[378072155,1754716299611,-400.0,0.00025753,2]
[378072156,1754716299621,-400.0,0.00025753,2]
[378072157,1754716299630,-400.0,0.00025753,2]
[378072158,1754716299640,-410.77,0.00025753,2]
[378072159,1754716299651,-400.0,0.00025753,2]
[378072160,1754716299661,-400.0,0.00025753,2]
[378072161,1754716299670,-404.88687064,0.00025753,2]
[378072162,1754716299680,-400.0,0.00025753,2]
[378072163,1754716299690,-400.0,0.00025753,2]
[378072164,1754716299699,-457.80579934,0.00025753,2]
[378072165,1754716299710,-2225.09,0.00025753,2]
[378072166,1754716299721,-653.0,0.00025753,2]
[378072167,1754716299734,-749.65,0.00025753,2]
[378072168,1754716299744,-496.93,0.00025753,2]
[378072169,1754716299754,-400.0,0.00025753,2]
[378072170,1754716299764,-404.43414414,0.00025753,2]
[378072171,1754716299774,-400.0,0.00025753,2]
[378072172,1754716299784,-404.45294786,0.00025753,2]
[378072173,1754716299794,-400.0,0.00025753,2]
[378072174,1754716299804,-506.66,0.00025753,2]
[378072175,1754716299820,-438.32,0.00025753,2]
[378072176,1754716299830,-405.21884832,0.00025753,2]
[378072177,1754716299845,-400.0,0.00025753,2]
[378072178,1754716299854,-400.0,0.00025753,2]
[378072179,1754716299864,-571.88,0.00025753,2]
[378072180,1754716299874,-400.0,0.00025753,2]
[378072181,1754716299884,-400.0,0.00025753,2]
[378072182,1754716299894,-536.8,0.00025753,2]
[378072183,1754716299904,-246.08360839,0.00025753,2]
[378072184,1754716299913,-400.0,0.00025753,2]
[378072185,1754716299923,-515.84,0.00025753,2]
[378072186,1754716299933,-400.0,0.00025753,2]
[378072187,1754716299943,-404.71170955,0.00025753,2]
[378072188,1754716299956,-400.0,0.00025753,2]
[378072189,1754716299967,-505.90309689,0.00025753,2]
[378072190,1754716299978,-400.0,0.00025753,2]
[378072191,1754716299988,-400.0,0.00025753,2]
[378072192,1754716299998,-598.15,0.00025753,2]
[378072193,1754716300008,-400.0,0.00025753,2]
[378072194,1754716300017,-400.0,0.00025753,2]
[378072195,1754716300027,-554.64,0.00025753,2]
[378072196,1754716300037,-400.0,0.00025753,2]
[378072197,1754716300048,-2945.93,0.00025753,2]
[378072198,1754716300058,-400.0,0.00025753,2]
[378072199,1754716300069,-400.0,0.00025753,2]
[378072200,1754716300079,-400.0,0.00025753,2]
[378072201,1754716300090,-400.0,0.00025753,2]
[378072202,1754716300100,-400.0,0.00025753,2]
[378072203,1754716300109,-400.0,0.00025753,2]
[378072204,1754716300119,-400.0,0.00025753,2]
[378072205,1754716300130,-400.0,0.00025753,2]
[378072206,1754716300145,-3397.13,0.00025753,2]
[378072207,1754716300156,-400.0,0.00025753,2]
[378072208,1754716300166,-848.32,0.00025753,2]
[378072209,1754716300178,-400.0,0.00025753,2]
[378072210,1754716300188,-400.0,0.00025753,2]
[378072211,1754716300198,-400.0,0.00025753,2]
[378072212,1754716300208,-400.0,0.00025753,2]
[378072213,1754716300219,-400.0,0.00025753,2]
[378072214,1754716300229,-400.0,0.00025753,2]
[378072215,1754716300239,-400.0,0.00025753,2]
[378072216,1754716300249,-654.75,0.00025753,2]
[378072217,1754716300259,-405.09246808,0.00025753,2]
[378072218,1754716300271,-604.11,0.00025753,2]
[378072219,1754716300282,-400.0,0.00025753,2]
[378072220,1754716300292,-400.0,0.00025753,2]
[378072221,1754716300301,-614.85,0.00025753,2]
[378072222,1754716300311,-474.68,0.00025753,2]
[378072223,1754716300322,-400.0,0.00025753,2]
[378072224,1754716300332,-400.0,0.00025753,2]
[378072225,1754716300345,-613.55,0.00025753,2]
[378072226,1754716300355,-400.0,0.00025753,2]
[378072227,1754716300365,-400.0,0.00025753,2]
[378072228,1754716300375,-400.0,0.00025753,2]
[378072229,1754716300386,-400.0,0.00025753,2]
[378072230,1754716300397,-400.0,0.00025753,2]
[378072231,1754716300407,-422.61,0.00025753,2]
[378072232,1754716300416,-400.0,0.00025753,2]
[378072233,1754716300426,-443.98,0.00025753,2]
[378072234,1754716300436,-415.03,0.00025753,2]
[378072235,1754716300447,-400.0,0.00025753,2]
[378072236,1754716300458,-400.0,0.00025753,2]
[378072237,1754716300468,-400.0,0.00025753,2]
[378072238,1754716300479,-400.0,0.00025753,2]
[378072239,1754716300488,-441.95782454,0.00025753,2]
[378072240,1754716300499,-408.41421154,0.00025753,2]
[378072241,1754716300508,-400.0,0.00025753,2]
[378072242,1754716300518,-494.91,0.00025753,2]
[378072243,1754716300528,-587.83,0.00025753,2]
[378072244,1754716300539,-400.0,0.00025753,2]
[378072245,1754716300549,-405.70559971,0.00025753,2]
[378072246,1754716300560,-400.0,0.00025753,2]
[378072247,1754716300570,-400.0,0.00025753,2]
[378072248,1754716300580,-400.0,0.00025753,2]
[378072249,1754716300592,-400.0,0.00025753,2]
[378072250,1754716300602,-400.0,0.00025753,2]
[378072251,1754716300611,-406.05974282,0.00025753,2]
[378072252,1754716300621,-520.01,0.00025753,2]
[378072253,1754716300632,-400.0,0.00025753,2]
[378072254,1754716300642,-400.0,0.00025753,2]
[378072255,1754716300652,-958.22,0.00025753,2]
[378072256,1754716300662,-232.28,0.00025753,2]
[378072257,1754716300672,-400.0,0.00025753,2]
[378072258,1754716300682,-302.45,0.00025753,2]
[378072259,1754716300692,-400.0,0.00025753,2]
[378072260,1754716300702,-400.0,0.00025753,2]
[378072261,1754716300712,-400.0,0.00025753,2]
[378072262,1754716300722,-406.1334694,0.00025753,2]
[378072263,1754716300732,-400.0,0.00025753,2]
[378072264,1754716300742,-595.82,0.00025753,2]
[378072265,1754716300751,-400.0,0.00025753,2]
[378072266,1754716300761,-400.0,0.00025753,2]
[378072267,1754716300771,-400.0,0.00025753,2]
[378072268,1754716300782,-400.0,0.00025753,2]
[378072269,1754716300792,-400.0,0.00025753,2]
[378072270,1754716300803,-605.15,0.00025753,2]
[378072271,1754716300814,-400.0,0.00025753,2]
[378072272,1754716300825,-400.0,0.00025753,2]
[378072273,1754716300838,-400.0,0.00025753,2]
[378072274,1754716300847,-400.0,0.00025753,2]
[378072275,1754716300858,-400.0,0.00025753,2]
[378072276,1754716300868,-400.0,0.00025753,2]
[378072277,1754716300879,-400.0,0.00025753,2]
[378072278,1754716300890,-509.5750913,0.00025753,2]
[378072279,1754716300901,-400.0,0.00025753,2]
[378072280,1754716300913,-400.0,0.00025753,2]
[378072281,1754716300923,-400.0,0.00025753,2]
[378072282,1754716300934,-400.0,0.00025753,2]
[378072283,1754716300946,-400.0,0.00025753,2]
[378072284,1754716300958,-707.28,0.00025753,2]
[378072285,1754716300969,-400.0,0.00025753,2]
[378072286,1754716300979,-400.0,0.00025753,2]
[378072287,1754716300990,-445.94,0.00025753,2]
[378072288,1754716301002,-400.0,0.00025753,2]
[378072289,1754716301012,-400.0,0.00025753,2]
[378072290,1754716301024,-658.13,0.00025753,2]
[378072291,1754716301035,-400.0,0.00025753,2]
[378072292,1754716301045,-400.0,0.00025753,2]
[378072293,1754716301056,-400.0,0.00025753,2]
[378072294,1754716301066,-400.0,0.00025753,2]
[378072295,1754716301076,-400.0,0.00025753,2]
[378072296,1754716301088,-400.0,0.00025753,2]
[378072297,1754716301098,-400.0,0.00025753,2]
[378072298,1754716301108,-400.0,0.00025753,2]
[378072299,1754716301118,-842.64,0.00025753,2]
[378072300,1754716301129,-400.0,0.00025753,2]
[378072301,1754716301141,-579.33,0.00025753,2]
[378072302,1754716301151,-400.0,0.00025753,2]
[378072303,1754716301162,-400.0,0.00025753,2]
[378072304,1754716301174,-400.0,0.00025753,2]
[378072305,1754716301184,-400.0,0.00025753,2]
[378072306,1754716301195,-400.0,0.00025753,2]
[378072307,1754716301205,-404.8768151,0.00025753,2]
[378072308,1754716301215,-400.0,0.00025753,2]
[378072309,1754716301225,-400.0,0.00025753,2]
[378072310,1754716301235,-400.0,0.00025753,2]
[378072311,1754716301245,-400.0,0.00025753,2]
[378072312,1754716301255,-400.0,0.00025753,2]
[378072313,1754716301265,-400.0,0.00025753,2]
[378072314,1754716301276,-400.0,0.00025753,2]
[378072315,1754716301286,-400.0,0.00025753,2]
[378072316,1754716301296,-400.0,0.00025753,2]
[378072317,1754716301306,-428.91,0.00025753,2]
[378072318,1754716301316,-400.0,0.00025753,2]
[378072319,1754716301327,-400.0,0.00025753,2]
[378072320,1754716301338,-447.48,0.00025753,2]
[378072321,1754716301348,-400.0,0.00025753,2]
[378072322,1754716301358,-779.93,0.00025753,2]
[378072323,1754716301368,-400.0,0.00025753,2]
[378072324,1754716301379,-400.0,0.00025753,2]
[378072325,1754716301389,-400.0,0.00025753,2]
[378072326,1754716301399,-400.0,0.00025753,2]
[378072327,1754716301409,-457.05751215,0.00025753,2]
[378072328,1754716301421,-400.0,0.00025753,2]
[378072329,1754716301432,-400.0,0.00025753,2]
[378072330,1754716301442,-293.29376677,0.00025753,2]
[378072331,1754716301453,-2647.03,0.00025753,2]
[378072332,1754716301463,-400.0,0.00025753,2]
[378072333,1754716301474,-400.0,0.00025753,2]
[378072334,1754716301484,-1000.0,0.00025753,2]
[378072335,1754716301494,-425.82,0.00025753,2]
[378072336,1754716301505,-400.0,0.00025753,2]
[378072337,1754716301515,-400.0,0.00025753,2]
[378072338,1754716301525,-559.98,0.00025753,2]
[378072339,1754716301536,-199.91182205,0.00025753,2]
[378072340,1754716301546,-445.11,0.00025753,2]
[378072341,1754716301557,-400.0,0.00025753,2]
[378072342,1754716301567,-192.45301246,0.00025753,2]
[378072343,1754716301576,-422.92494351,0.00025753,2]
[378072344,1754716301588,-400.0,0.00025753,2]
[378072345,1754716301598,-400.0,0.00025753,2]
[378072346,1754716301609,-400.0,0.00025753,2]
[378072347,1754716301619,-173.63448529,0.00025753,2]
[378072348,1754716301629,-400.0,0.00025753,2]
[378072349,1754716301640,-400.0,0.00025753,2]
[378072350,1754716301650,-477.40697375,0.00025753,2]
[378072351,1754716301661,-400.0,0.00025753,2]
[378072352,1754716301671,-667.29,0.00025753,2]
[378072353,1754716301681,-742.79,0.00025753,2]
[378072354,1754716301692,-400.0,0.00025753,2]
[378072355,1754716301702,-400.0,0.00025753,2]
[378072356,1754716301713,-498.44,0.00025753,2]
[378072357,1754716301724,-400.0,0.00025753,2]
[378072358,1754716301734,-420.12637854,0.00025753,2]
[378072359,1754716301744,-400.0,0.00025753,2]
[378072360,1754716301755,-400.0,0.00025753,2]
[378072361,1754716301766,-400.0,0.00025753,2]
[378072362,1754716301776,-1174.17,0.00025753,2]
[378072363,1754716301787,-400.0,0.00025753,2]
[378072364,1754716301982,-400.0,0.00025753,2]
[378072365,1754716302012,-400.0,0.00025753,2]
[378072366,1754716302023,-659.93,0.00025753,2]
[378072367,1754716302033,-400.0,0.00025753,2]
[378072368,1754716302043,-400.0,0.00025753,2]
[378072369,1754716302053,-432.10284627,0.00025753,2]
[378072370,1754716302063,-405.81125328,0.00025753,2]
[378072371,1754716302073,-428.9692319,0.00025753,2]
[378072372,1754716302083,-400.0,0.00025753,2]
[378072373,1754716302096,-400.0,0.00025753,2]
[378072374,1754716302106,-400.0,0.00025753,2]
[378072375,1754716302116,-400.0,0.00025753,2]
[378072376,1754716302126,-500.7,0.00025753,2]
[378072377,1754716302138,-400.0,0.00025753,2]
[378072378,1754716302148,-428.83642537,0.00025753,2]
[378072379,1754716302157,-957.38,0.00025753,2]
[378072380,1754716302166,-400.0,0.00025753,2]
[378072381,1754716302177,-458.65731451,0.00025753,2]
[378072382,1754716302186,-400.0,0.00025753,2]
[378072383,1754716302196,-400.0,0.00025753,2]
[378072384,1754716302206,-400.0,0.00025753,2]
[378072385,1754716302216,-402.16712588,0.00025753,2]
[378072386,1754716302226,-569.1,0.00025753,2]
[378072387,1754716302236,-400.0,0.00025753,2]
[378072388,1754716302246,-400.0,0.00025753,2]
[378072389,1754716302256,-400.0,0.00025753,2]
[378072390,1754716302266,-157.49988908,0.00025753,2]
[378072391,1754716302275,-400.0,0.00025753,2]
[378072392,1754716302285,-400.0,0.00025753,2]
[378072393,1754716302295,-400.0,0.00025753,2]
[378072394,1754716302305,-400.0,0.00025753,2]
[378072395,1754716302316,-400.0,0.00025753,2]
[378072396,1754716302325,-400.0,0.00025753,2]
[378072397,1754716302336,-470.79,0.00025753,2]
[378072398,1754716302348,-1217.99,0.00025753,2]
[378072399,1754716302358,-400.0,0.00025753,2]
[378072400,1754716302368,-471.36,0.00025753,2]
[378072401,1754716302378,-180.20270203,0.00025753,2]
[378072402,1754716302388,-400.0,0.00025753,2]
[378072403,1754716302398,-400.0,0.00025753,2]
[378072404,1754716302408,-400.0,0.00025753,2]
[378072405,1754716302417,-400.0,0.00025753,2]
[378072406,1754716302427,-400.0,0.00025753,2]
[378072407,1754716302436,-1500.0,0.00025768,2]
[378072408,1754716302446,-682.7,0.00025786,2]
[378072409,1754716302457,-26700.01,0.00025786,2]
[378072410,1754716302467,-9999.99,0.00025786,2]
[378072411,1754716302476,-2552.913,0.00025813,2]
[378072412,1754716302486,-646.13125887,0.00025868,2]
[378072413,1754716302495,-4619.61041937,0.00025909,2]
[378072414,1754716302505,-2388.89564096,0.00025927,2]
[378072415,1754716302515,-153.03,0.0002595,7]
[378072416,1754716302525,-500.0,0.00025981,2]
[378072417,1754716302535,-766.52,0.00025981,2]
[378072418,1754716302546,-42023.518672,0.00025982,2]
[378072419,1754716302555,-1408.6113629,0.00025982,2]
[378072420,1754716302566,-10841.5976236,0.00025991,2]
[378072421,1754716302575,-38921.3520908,0.00025991,2]
[378072422,1754716302586,-359.76828908,0.00026,120]
[378072423,1754716302596,-150.6709251,0.00026,2]
[378072424,1754716302606,-380.25,0.00026,7]
[378072425,1754716302615,-16371.37010406,0.00026,2]
[378072427,1754716303043,-406.54209379,0.00026,2]
[378072428,1754716303055,-93579.42908903,0.00026,2]
[378072429,1754716303661,-212.51587187,0.0001988,2]
[378072430,1754716303671,-670.03540031,0.00020497,3]
[378072431,1754716303722,-217.96459969,0.00020497,3]
[378072432,1754716303732,-888.0,0.000205,3]
[378072433,1754716303741,-888.0,0.0002091,3]
[378072434,1754716303751,-1776.0,0.00022737,3]
[378072435,1754716303761,-1776.0,0.0002274,3]
[378072436,1754716303771,-1587.81340031,0.0002315,3]
[378072437,1754716303782,-188.18659969,0.0002315,3]
[378072438,1754716303792,-400.0,0.00024657,2]
[378072439,1754716303801,-400.0,0.00024657,2]
[378072440,1754716303811,-400.0,0.00024657,2]
[378072441,1754716303820,-400.0,0.00024657,2]
[378072442,1754716303830,-521.04902,0.00024657,2]
[378072443,1754716303842,-400.0,0.00024931,2]
[378072444,1754716303851,-409.3609602,0.00024931,2]
[378072445,1754716303861,-403.96271939,0.00024931,2]
[378072446,1754716303871,-400.0,0.00024931,2]
[378072447,1754716303882,-400.0,0.00025205,2]
[378072448,1754716303891,-400.0,0.00025205,2]
[378072449,1754716303900,-400.0,0.00025205,2]
[378072450,1754716303910,-278.64070072,0.00025205,2]
[378072451,1754716303922,-121.35929928,0.00025205,2]
[378072452,1754716303932,-400.0,0.00025479,2]
[378072453,1754716303942,-400.0,0.00025479,2]
[378072454,1754716303952,-400.0,0.00025479,2]
[378072455,1754716303961,-400.0,0.00025479,2]
[378072456,1754716303971,-400.0,0.00025753,2]
[378072457,1754716303980,-400.0,0.00025753,2]
[378072458,1754716303990,-400.0,0.00025753,2]
[378072459,1754716303999,-400.0,0.00025753,2]
[378072460,1754716304009,-624.94004971,0.00026,2]
[378072461,1754716304035,-402.09785315,0.00024657,2]
[378072462,1754716304044,-68.79691501,0.00026,2]
[378072463,1754716304055,-438.65514724,0.00026,2]
[378072464,1754716304066,-2090.04803,0.00026,2]
[378072465,1754716304078,-53727.81903204,0.00026,2]
[378072466,1754716304087,-7035.62290738,0.00026,7]
[378072467,1754716304098,-166.13,0.00026019,120]
[378072468,1754716304107,-500.0,0.00026026,2]
[378072469,1754716304116,-766.52,0.00026026,2]
[378072470,1754716304127,-290.48263,0.00026027,2]
[378072471,1754716304139,-405.14003283,0.00026027,2]
[378072472,1754716304148,-315.37179995,0.00026027,2]
[378072473,1754716304158,-184.74331415,0.00026027,2]
[378072474,1754716304167,-192.16482503,0.00026027,2]
[378072475,1754716304176,-400.0,0.00026027,2]
[378072476,1754716304186,-400.0,0.00026027,2]
[378072477,1754716304195,-400.0,0.00026027,2]
[378072478,1754716304205,-404.66815316,0.00026027,2]
[378072479,1754716304216,-436.13926484,0.00026027,2]
[378072480,1754716304225,-400.0,0.00026027,2]
[378072481,1754716304235,-400.0,0.00026027,2]
[378072482,1754716304244,-400.0,0.00026027,2]
[378072483,1754716304254,-400.0,0.00026027,2]
[378072484,1754716304325,-400.0,0.00026027,2]
[378072485,1754716304335,-529.94220757,0.00026027,2]
[378072486,1754716304346,-404.65382563,0.00026027,2]
[378072487,1754716304356,-400.0,0.00026027,2]
[378072488,1754716304366,-400.0,0.00026027,2]
[378072489,1754716304375,-400.0,0.00026027,2]
[378072490,1754716304384,-400.0,0.00026027,2]
[378072491,1754716304393,-400.0,0.00026027,2]
[378072492,1754716304402,-493.51,0.00026027,2]
[378072493,1754716304411,-400.0,0.00026027,2]
[378072494,1754716304421,-400.0,0.00026027,2]
[378072495,1754716304430,-400.0,0.00026027,2]
[378072496,1754716304439,-400.0,0.00026027,2]
[378072497,1754716304448,-400.0,0.00026027,2]
[378072498,1754716304457,-400.0,0.00026027,2]
[378072499,1754716304466,-427.00902269,0.00026027,2]
[378072500,1754716304475,-400.0,0.00026027,2]
[378072501,1754716304484,-400.0,0.00026027,2]
[378072502,1754716304494,-400.0,0.00026027,2]
[378072503,1754716304503,-400.0,0.00026027,2]
[378072504,1754716304513,-400.0,0.00026027,2]
[378072505,1754716304523,-400.0,0.00026027,2]
[378072506,1754716304532,-400.0,0.00026027,2]
[378072507,1754716304543,-400.0,0.00026027,2]
[378072508,1754716304552,-400.0,0.00026027,2]
[378072509,1754716304562,-400.0,0.00026027,2]
[378072510,1754716304572,-400.0,0.00026027,2]
[378072511,1754716304581,-400.0,0.00026027,2]
[378072512,1754716304593,-400.0,0.00026027,2]
[378072513,1754716304603,-400.0,0.00026027,2]
[378072514,1754716304612,-402.40491496,0.00026027,2]
[378072515,1754716304621,-400.0,0.00026027,2]
[378072516,1754716304631,-400.0,0.00026027,2]
[378072517,1754716304640,-405.52898777,0.00026027,2]
[378072518,1754716304649,-436.4519163,0.00026027,2]
[378072519,1754716304659,-400.0,0.00026027,2]
[378072520,1754716304668,-400.0,0.00026027,2]
[378072521,1754716304678,-400.0,0.00026027,2]
[378072522,1754716304687,-400.0,0.00026027,2]
[378072523,1754716304696,-400.0,0.00026027,2]
[378072524,1754716304706,-400.0,0.00026027,2]
[378072525,1754716304715,-400.0,0.00026027,2]
[378072526,1754716304725,-400.0,0.00026027,2]
[378072527,1754716304735,-400.0,0.00026027,2]
[378072528,1754716304743,-400.0,0.00026027,2]
[378072529,1754716304753,-400.0,0.00026027,2]
[378072530,1754716304762,-400.0,0.00026027,2]
[378072531,1754716304771,-400.0,0.00026027,2]
[378072532,1754716304781,-400.0,0.00026027,2]
[378072533,1754716304790,-400.0,0.00026027,2]
[378072534,1754716304799,-400.0,0.00026027,2]
[378072535,1754716304808,-405.38495032,0.00026027,2]
[378072536,1754716304817,-400.0,0.00026027,2]
[378072537,1754716304827,-400.0,0.00026027,2]
[378072538,1754716304836,-400.0,0.00026027,2]
[378072539,1754716304847,-400.0,0.00026027,2]
[378072540,1754716304856,-427.13374099,0.00026027,2]
[378072541,1754716304865,-319.638622,0.00026027,2]
[378072542,1754716304875,-161.61051335,0.00026027,2]
[378072543,1754716304884,-400.0,0.00026027,2]
[378072544,1754716304893,-400.0,0.00026027,2]
[378072545,1754716304903,-400.0,0.00026027,2]
[378072546,1754716304912,-400.0,0.00026027,2]
[378072547,1754716304921,-400.0,0.00026027,2]
[378072548,1754716304930,-344.45869331,0.00026027,2]
[378072549,1754716304939,-400.0,0.00026027,2]
[378072550,1754716304951,-400.0,0.00026027,2]
[378072551,1754716304961,-400.0,0.00026027,2]
[378072552,1754716304970,-400.0,0.00026027,2]
[378072553,1754716304980,-400.0,0.00026027,2]
[378072554,1754716304989,-400.0,0.00026027,2]
[378072555,1754716304998,-400.0,0.00026027,2]
[378072556,1754716305007,-400.0,0.00026027,2]
[378072557,1754716305017,-400.0,0.00026027,2]
[378072558,1754716305026,-300.0,0.00026027,2]
[378072559,1754716305036,-400.0,0.00026027,2]
[378072560,1754716305045,-315.24382706,0.00026027,2]
[378072561,1754716305054,-400.0,0.00026027,2]
[378072562,1754716305064,-400.0,0.00026027,2]
[378072563,1754716305073,-400.0,0.00026027,2]
[378072564,1754716305082,-400.0,0.00026027,2]
[378072565,1754716305091,-400.0,0.00026027,2]
[378072566,1754716305101,-400.0,0.00026027,2]
[378072567,1754716305110,-400.0,0.00026027,2]
[378072568,1754716305120,-400.0,0.00026027,2]
[378072569,1754716305130,-400.0,0.00026027,2]
[378072570,1754716305143,-400.0,0.00026027,2]
[378072571,1754716305152,-400.0,0.00026027,2]
[378072572,1754716305161,-400.0,0.00026027,2]
[378072573,1754716305172,-400.0,0.00026027,2]
[378072574,1754716305181,-400.0,0.00026027,2]
[378072575,1754716305191,-400.0,0.00026027,2]
[378072576,1754716305201,-400.0,0.00026027,2]
[378072577,1754716305211,-444.6732409,0.00026027,2]
[378072578,1754716305220,-400.0,0.00026027,2]
[378072579,1754716305229,-400.0,0.00026027,2]
[378072580,1754716305240,-400.0,0.00026027,2]
[378072581,1754716305249,-265.495585,0.00026027,2]
[378072582,1754716305258,-400.0,0.00026027,2]
[378072583,1754716305268,-400.0,0.00026027,2]
[378072584,1754716305277,-400.0,0.00026027,2]
[378072585,1754716305286,-400.0,0.00026027,2]
[378072586,1754716305295,-400.0,0.00026027,2]
[378072587,1754716305305,-400.0,0.00026027,2]
[378072588,1754716305315,-400.0,0.00026027,2]
[378072589,1754716305324,-400.0,0.00026027,2]
[378072590,1754716305333,-400.0,0.00026027,2]
[378072591,1754716305344,-400.0,0.00026027,2]
[378072592,1754716305354,-406.76237216,0.00026027,2]
[378072593,1754716305363,-400.0,0.00026027,2]
[378072594,1754716305372,-400.0,0.00026027,2]
[378072595,1754716305382,-400.0,0.00026027,2]
[378072596,1754716305391,-400.0,0.00026027,2]
[378072597,1754716305400,-400.0,0.00026027,2]
[378072598,1754716305410,-400.0,0.00026027,2]
[378072599,1754716305419,-400.0,0.00026027,2]
[378072600,1754716305429,-400.0,0.00026027,2]
[378072601,1754716305438,-400.0,0.00026027,2]
[378072602,1754716305447,-400.0,0.00026027,2]
[378072603,1754716305456,-400.0,0.00026027,2]
[378072604,1754716305466,-416.11646613,0.00026027,2]
[378072605,1754716305475,-400.0,0.00026027,2]
[378072606,1754716305484,-400.0,0.00026027,2]
[378072607,1754716305494,-400.0,0.00026027,2]
[378072608,1754716305503,-400.0,0.00026027,2]
[378072609,1754716305513,-400.0,0.00026027,2]
[378072610,1754716305522,-400.0,0.00026027,2]
[378072611,1754716305532,-410.09120085,0.00026027,2]
[378072612,1754716305542,-400.0,0.00026027,2]
[378072613,1754716305552,-400.0,0.00026027,2]
[378072614,1754716305562,-405.07306147,0.00026027,2]
[378072615,1754716305571,-400.0,0.00026027,2]
[378072616,1754716305581,-400.0,0.00026027,2]
[378072617,1754716305595,-400.0,0.00026027,2]
[378072618,1754716305604,-400.0,0.00026027,2]
[378072619,1754716305614,-400.0,0.00026027,2]
[378072620,1754716305624,-400.0,0.00026027,2]
[378072621,1754716305634,-400.0,0.00026027,2]
[378072622,1754716305645,-400.0,0.00026027,2]
[378072623,1754716305655,-411.73275031,0.00026027,2]
[378072624,1754716305666,-400.0,0.00026027,2]
[378072625,1754716305676,-400.0,0.00026027,2]
[378072626,1754716305686,-400.0,0.00026027,2]
[378072627,1754716305696,-400.0,0.00026027,2]
[378072628,1754716305706,-400.0,0.00026027,2]
[378072629,1754716305717,-400.0,0.00026027,2]
[378072630,1754716305728,-400.0,0.00026027,2]
[378072631,1754716305737,-400.0,0.00026027,2]
[378072632,1754716305747,-400.0,0.00026027,2]
[378072633,1754716305757,-156.17535883,0.00026027,2]
[378072634,1754716305766,-400.0,0.00026027,2]
[378072635,1754716305775,-400.0,0.00026027,2]
[378072636,1754716305785,-400.0,0.00026027,2]
[378072637,1754716305794,-400.0,0.00026027,2]
[378072638,1754716305804,-400.0,0.00026027,2]
[378072639,1754716305813,-400.0,0.00026027,2]
[378072640,1754716305823,-400.0,0.00026027,2]
[378072641,1754716305832,-400.0,0.00026027,2]
[378072642,1754716305843,-400.0,0.00026027,2]